Cogmind - Beta 10.1 @@@ ROGUE MODE // 2020.10.11 @ 06:02:47 Player: King Curtis Result: Destroyed by Y-45 Defender with Beam Rifle Performance ------------- Evolutions (2) 1000 Regions Visited (5) 1000 Robots Destroyed (58) 290 Value Destroyed (1532) 1532 Prototype IDs (3) 60 Alien Tech Used (0) 0 Bonus (474) 474 TOTAL SCORE: 4356 Bonus ------- High Alert Combat Kills 174 Aligned with FarCom 300 Cogmind --------- Core Integrity 0/550 Matter 260/300 Energy 265/265 System Corruption 0% Temperature Cool (9) Movement Core (200) Ox3 Location -8/Materials Parts ------- > --- POWER (1) -------- Reinforced Ion Engine > --- PROPULSION (3) --- (None) > --- UTILITY (5) ------ Improved Cooling System > --- WEAPON (2) ------- (None) > --- INVENTORY (4) ---- Improved Ion Engine AWS/Gauss Peak State ------------ > --- POWER ------------ Reinforced Ion Engine > --- PROPULSION ------- (None) > --- UTILITY ---------- Improved Heat Sink Improved Cooling System Improved Cooling System Large Storage Unit Particle Charger > --- WEAPON ----------- AWS/Gauss > --- INVENTORY -------- Improved Ion Engine [Rating: 33] Favorites ----------- Power Ion Engine Engine Ion Engine Propulsion Wheel Treads Light Treads Wheel Wheel Utility Large Storage Unit Device Improved Cooling System Storage Large Storage Unit Protection Light Armor Plating Weapon Light Assault Rifle Energy Gun Medium Laser Ballistic Gun Light Assault Rifle Launcher Grenade Launcher Build | -11 -10 -10 -10 -9 -8 ------- Run | Scr Mat Min Exi Min Mat Slots Evolved 4 | . . . . . 4 Power . | . . . . . . Propulsion 1 | . . . . . 1 Utility 3 | . . . . . 3 Weapon . | . . . . . . Parts Attached 40 | 6 3 . 4 2 25 Power 3 | 1 . . . 1 1 Engine 3 | 1 . . . 1 1 Core . | . . . . . . Reactor . | . . . . . . Propulsion 10 | 2 . . . . 8 Treads 8 | . . . . . 8 Leg . | . . . . . . Wheel 2 | 2 . . . . . Hover . | . . . . . . Flight . | . . . . . . Utility 14 | 1 1 . 2 1 9 Device 8 | . . . 2 1 5 Storage 2 | 1 1 . . . . Processor . | . . . . . . Hackware . | . . . . . . Protection 4 | . . . . . 4 Artifact . | . . . . . . Weapon 13 | 2 2 . 2 . 7 Energy Gun 1 | . . . . . 1 Energy Cannon . | . . . . . . Ballistic Gun 8 | 2 1 . 2 . 3 Ballistic Cannon . | . . . . . . Launcher 4 | . 1 . . . 3 Special Weapon . | . . . . . . Impact Weapon . | . . . . . . Slashing Weapon . | . . . . . . Piercing Weapon . | . . . . . . Special Melee Weapon . | . . . . . . Unidentified Prototypes 3 | . . . 3 . . Parts Lost 18 | . . . . 1 17 Power 2 | . . . . 1 1 Propulsion 7 | . . . . . 7 Utility 5 | . . . . . 5 Weapon 4 | . . . . . 4 Highest Loss Streak 5 | . . . . 1 5 Average Slot Usage (%) 78 | . 85 85 77 81 74 Engine 11 | . 14 14 14 14 8 Treads 6 | . . . . . 13 Wheel 18 | . 28 28 28 28 7 Device 8 | . . . . 10 16 Storage 11 | . 14 14 14 14 8 Protection 5 | . . . . . 11 Ballistic Gun 11 | . 26 14 13 14 6 Launcher 4 | . 1 14 7 . 1 Naked Turns . | . . . . . . Heaviest Build 42 | 11 25 25 31 32 42 Greatest Support 60 | 20 20 20 20 20 60 Greatest Overweight (x) 9 | . 1 1 1 1 9 Average Overweight (x) . | . . 1 1 1 1 Largest Inventory Capacity 12 | 6 12 10 10 10 10 Average Capacity 9 | 4 9 10 10 10 9 Most Carried 10 | 4 10 10 10 10 10 Average Carried 8 | 1 7 10 9 9 8 Final Capacity 10 | 6 10 10 10 10 4 Final Carried 10 | 4 10 10 10 9 3 Class Distribution -------------------- 84% | Mutant 15% | Scavenger-Mutant Dominant Class ---------------- Mutant | -10/Materials Mutant | -10/Mines Mutant | -10/Exiles Mutant | -9/Mines Mutant | -8/Materials Resources | -11 -10 -10 -10 -9 -8 ----------- Run | Scr Mat Min Exi Min Mat Matter Collected 666 | 225 75 19 . 71 276 Remotely . | . . . . . . Salvage Created 1660 | . 163 12 . 480 1005 Parts 102 | . 13 5 . 18 66 Haulers Intercepted 1 | . 1 . . . . Recyclers Shooed . | . . . . . . Parts Field Recycled . | . . . . . . Retrieved Matter . | . . . . . . Parts Self-Destructed . | . . . . . . Prevented . | . . . . . . Kills | -11 -10 -10 -10 -9 -8 ------- Run | Scr Mat Min Exi Min Mat Combat Hostiles Destroyed 51 | . 3 3 . 17 28 Guns 37 | . 3 . . 16 18 AOE 14 | . . 3 . 1 10 Classes Destroyed 12 | . 2 1 . 2 7 Worker 2 | . . . . . 2 Builder 2 | . . . . . 2 Tunneler 1 | . . . . . 1 Hauler 1 | . 1 . . . . Watcher 1 | . . . . . 1 Swarmer 12 | . . 3 . . 9 Grunt 25 | . 3 . . 8 14 Brawler 2 | . . . . 1 1 Protector 1 | . . . . . 1 Sentry 2 | . . . . . 2 Hunter 1 | . . . . . 1 Assembled 8 | . . . . 8 . Best Kill Streak 19 | . 2 3 . 8 19 Combat Bots Only 17 | . 2 3 . 8 17 Max Kills in Single Turn 3 | . 1 2 . 2 3 Gunslinging . | . . . . . . Exploded 2 | . . 2 . 1 2 Melee . | . . . . . . Uniques/NPCs Destroyed . | . . . . . . Combat | -11 -10 -10 -10 -9 -8 -------- Run | Scr Mat Min Exi Min Mat Damage Taken 2728 | . 109 122 . 124 2373 Core 684 | . 42 39 . 43 560 Absorbed by Shields . | . . . . . . Core Remaining (%) 75 | 100 . . . 50 . Volleys Fired 38 | . 10 5 . . 23 Largest 2 | . 2 2 . . 2 Hottest 80 | . 40 50 . . 80 Shots Fired 155 | . 20 7 . 39 89 Gun 141 | . 20 5 . 39 77 Cannon . | . . . . . . Launcher 14 | . . 2 . . 12 Special . | . . . . . . Kinetic 138 | . 20 5 . 39 74 Thermal 3 | . . . . . 3 Explosive 14 | . . 2 . . 12 Electromagnetic . | . . . . . . Robot Hit Streak 14 | . 10 2 . 14 12 Robot Miss Streak 5 | . 3 5 . 2 3 Penetration Max . | . . . . . . Secondary Targets 2 | . 1 . . . 1 Max Gunslinging Chain 1 | . 1 . . . 1 Autonomous 93 | . . . . 39 54 Shots Hit Robots 116 | . 15 2 . 30 69 Core Hits 96 | . 9 3 . 20 64 Critical Hits 3 | . . . . 2 1 Critical Kills 1 | . . . . 1 . Critical Parts Destroyed 2 | . . . . 1 1 Melee Attacks . | . . . . . . Impact . | . . . . . . Slashing . | . . . . . . Piercing . | . . . . . . Sneak Attacks . | . . . . . . Combat Hostiles . | . . . . . . Follow-up Attacks . | . . . . . . Damage Inflicted 4029 | . 114 183 . 1139 2593 Guns 2644 | . 114 10 . 1037 1483 Cannons . | . . . . . . Explosions 1385 | . . 173 . 102 1110 Melee . | . . . . . . Ramming . | . . . . . . Kinetic 2605 | . 114 10 . 1037 1444 Thermal 141 | . . . . 102 39 Explosive 1283 | . . 173 . . 1110 Electromagnetic . | . . . . . . Impact . | . . . . . . Slashing . | . . . . . . Piercing . | . . . . . . Highest Corruption . | . . . . . . Average Corruption . | . . . . . . Corruption Purged . | . . . . . . Overload Shots . | . . . . . . Overflow Damage 25 | . . . . 7 18 Projectiles . | . . . . . . Explosions 25 | . . . . 7 18 Melee . | . . . . . . Knockbacks . | . . . . . . Impact . | . . . . . . Kinetic . | . . . . . . Secondary . | . . . . . . Self-Inflicted Damage 186 | . . . . . 186 Shots 9 | . . . . . 9 Rammed . | . . . . . . Targets Rammed . | . . . . . . Kicked . | . . . . . . Crushed . | . . . . . . Highest Temperature 12 | . 12 10 . . 6 Average Temperature 6 | . 9 7 . . 3 Received Heat Transfer 816 | . 60 . . 36 720 Siege Activations . | . . . . . . Robots Corrupted . | . . . . . . Combat Hostiles . | . . . . . . Parts Fried . | . . . . . . Impact Corruptions . | . . . . . . Robots Melted . | . . . . . . Combat Hostiles . | . . . . . . Parts Melted . | . . . . . . Heat Transferred 311 | . . . . 200 111 Parts Sabotaged . | . . . . . . Parts Stolen . | . . . . . . Parts Stripped . | . . . . . . Power Chain Reactions . | . . . . . . Missiles Intercepted . | . . . . . . Alert | -11 -10 -10 -10 -9 -8 ------- Run | Scr Mat Min Exi Min Mat Peak Influence 717 | . 67 95 . 230 717 Initial 89 | . . 25 . . 89 Average 254 | . 43 64 . 128 416 Maximum Alert Level 3 | . . . . 1 3 Low Security (%) 62 | 100 100 100 . 64 37 Level 1 5 | . . . . 35 3 Level 2 26 | . . . . . 49 Level 3 5 | . . . . . 9 Level 4 . | . . . . . . Level 5 . | . . . . . . High Security . | . . . . . . Max Security . | . . . . . . Squads Dispatched 5 | . . . . . 5 Investigation 1 | . . . . . 1 Extermination . | . . . . . . Reinforcement 3 | . . . . . 3 Assault 1 | . . . . . 1 Garrison . | . . . . . . Intercept . | . . . . . . Construction Impeded 1 | . . . . . 1 Haulers Reinforced . | . . . . . . Stealth | -11 -10 -10 -10 -9 -8 --------- Run | Scr Mat Min Exi Min Mat Distress Signals 2 | . . . . . 2 Communications Jammed . | . . . . . . Distress Signals . | . . . . . . Times Spotted 78 | . 3 3 . 33 39 Peak Tracking Total 21 | . 2 3 . 21 7 Tactical Retreats 6 | . . . . 2 4 Traps | -11 -10 -10 -10 -9 -8 ------- Run | Scr Mat Min Exi Min Mat Traps Triggered 3 | . 1 . . . 2 Indirectly . | . . . . . . Trap Hack Attempts . | . . . . . . Triggered . | . . . . . . Disarmed . | . . . . . . Reprogrammed . | . . . . . . Reused . | . . . . . . Traps Extracted . | . . . . . . Installed . | . . . . . . Triggered . | . . . . . . Machines | -11 -10 -10 -10 -9 -8 ---------- Run | Scr Mat Min Exi Min Mat Machines Disabled 6 | . . . . 1 5 Max in Single Turn 1 | . . . . 1 1 Machines Sabotaged . | . . . . . . Garrisons Compromised . | . . . . . . Overloaded Fab Kills . | . . . . . . Fab Network Shutdowns . | . . . . . . Hacking | -11 -10 -10 -10 -9 -8 --------- Run | Scr Mat Min Exi Min Mat Machines Accessed 2 | . . . . . 2 Terminals 1 | . . . . . 1 Fabricators . | . . . . . . Repair Stations . | . . . . . . Recycling Units 1 | . . . . . 1 Scanalyzers . | . . . . . . Garrison Access . | . . . . . . Total Hacks 5 | . . . . . 5 Successful 2 | . . . . . 2 Failed 3 | . . . . . 3 Catastrophic . | . . . . . . Database Lockouts . | . . . . . . Manual 3 | . . . 1 . 2 Terminals 2 | . . . . . 2 Fabricators . | . . . . . . Repair Stations . | . . . . . . Recycling Units 3 | . . . . . 3 Scanalyzers . | . . . . . . Garrison Access . | . . . . . . Terminal Hacks 1 | . . . . . 1 Level Access Points 1 | . . . . . 1 Fabricator Hacks . | . . . . . . Repair Station Hacks . | . . . . . . Recycling Unit Hacks 1 | . . . . . 1 Retrieve Components 1 | . . . . . 1 Scanalyzer . | . . . . . . Garrison Access Hacks . | . . . . . . Unauthorized Hacks . | . . . . . . Terminals . | . . . . . . Fabricators . | . . . . . . Repair Stations . | . . . . . . Recycling Units . | . . . . . . Scanalyzers . | . . . . . . Garrison Access . | . . . . . . Data Cores Recovered . | . . . . . . Used . | . . . . . . Hacking Detections 2 | . . . . . 2 Full Trace Events . | . . . . . . Feedback Events . | . . . . . . Feedback Blocked . | . . . . . . Robot Schematics Acquired . | . . . . . . Robots Built . | . . . . . . Matter . | . . . . . . Time . | . . . . . . Total Robot Build Rating . | . . . . . . Part Schematics Acquired . | . . . . . . Parts Built . | . . . . . . Matter . | . . . . . . Time . | . . . . . . Total Part Build Rating . | . . . . . . Parts Repaired . | . . . . . . Time . | . . . . . . Parts Recycled . | . . . . . . Recycled Matter . | . . . . . . Retrieved Matter . | . . . . . . Retrieved Components 1 | . . . . . 1 Parts Scanalyzed . | . . . . . . Part Schematics Acquired . | . . . . . . Parts Damaged . | . . . . . . Bothacking | -11 -10 -10 -10 -9 -8 ------------ Run | Scr Mat Min Exi Min Mat Used RIF Installer . | . . . . . . Robots Hacked . | . . . . . . Non-combat . | . . . . . . Combat . | . . . . . . Robot Hacks Applied . | . . . . . . Relay Couplers Released . | . . . . . . Robots Rewired . | . . . . . . Allies Hacked . | . . . . . . Hacks Repelled . | . . . . . . Allies | -11 -10 -10 -10 -9 -8 -------- Run | Scr Mat Min Exi Min Mat Total Allies . | . . . . . . Largest Group . | . . . . . . Highest-Rated Group . | . . . . . . Highest-Rated Ally . | . . . . . . Total Orders . | . . . . . . Ally Attacks . | . . . . . . Total Damage . | . . . . . . Kills . | . . . . . . Allies Corrupted . | . . . . . . Allies Melted . | . . . . . . Intel | -11 -10 -10 -10 -9 -8 ------- Run | Scr Mat Min Exi Min Mat Robot Analysis Total . | . . . . . . Derelict Logs Recovered 4 | . . 3 . 1 . Drone Launches . | . . . . . . Drone Recoveries . | . . . . . . Exploration | -11 -10 -10 -10 -9 -8 ------------- Run | Scr Mat Min Exi Min Mat Turns Passed 1500 | 53 169 239 216 136 687 Spaces Moved 1225 | 51 146 254 225 139 410 Core 16 | 1 . . . . 15 Treads 151 | . . . . . 151 Legs . | . . . . . . Wheels 1058 | 50 146 254 225 139 244 Hover . | . . . . . . Flight . | . . . . . . Fastest Speed 50 | 50 80 90 90 90 90 Average Speed 101 | 79 88 90 90 90 124 Slowest Speed 500 | 80 90 90 90 90 500 Overloaded Moves . | . . . . . . Propulsion Burnouts . | . . . . . . Robots Hopped . | . . . . . . Cave-ins Triggered . | . . . . . . Exploration Rate (%) 36 | 5 24 47 60 43 37 Regions Visited 5 Branch Regions 3 Pre-discovered Areas . | . . . . . . Known Exits Taken 1 | . . . 1 . . Unknown Exits Taken 4 | 1 1 1 . 1 . Scrap Searched 1 | . . 1 . . . Spaces Dug . | . . . . . . Terrain Destroyed 137 | . . 22 . 33 82 Melee . | . . . . . . Projectile 50 | . . . . 30 20 AOE 87 | . . 22 . 3 62 Terrain Rammed . | . . . . . . Walls Destroyed . | . . . . . . Machines Disabled . | . . . . . . Actions | -11 -10 -10 -10 -9 -8 --------- Run | Scr Mat Min Exi Min Mat Total 1435 | 60 170 258 241 150 556 Wait 76 | . . . . 5 71 Move 1220 | 50 145 253 224 138 410 Hop . | . . . . . . Pick Up 38 | 4 9 . 6 3 16 Fast Attach 10 | 6 1 . . . 3 Attach 27 | . 2 . 4 2 19 Detach 1 | . . . . . 1 Swap 3 | . . . . . 3 Drop 22 | . 3 . 7 2 10 Fire 38 | . 10 5 . . 23 Melee . | . . . . . . Ram . | . . . . . . Kick . | . . . . . . Crush . | . . . . . . Escape Stasis . | . . . . . . Rewire . | . . . . . . Trap . | . . . . . . Miscellaneous . | . . . . . . Route ------- -11/Scrapyard -10/Materials -10/Mines -10/Exiles (discovered 2 exits: *Min x2) -9/Mines -8/Materials (discovered 3 exits: Fac x3) History --------- Turn | Location | Event 34 | -11/Scrapyard | Discovered new exit (range 15) 54 | -11/Scrapyard | Entered Materials 185 | -10/Materials | Discovered new exit (range 7) 223 | -10/Materials | Entered Mines 260 | -10/Mines | Learned Materials terminal intel 302 | -10/Mines | Build established: Mutant 368 | -10/Mines | Learned location of 1 exit from Materials 458 | -10/Mines | Deemed a non-threat by the Exiles lab entrance 458 | -10/Mines | Discovered new exit (range 5) 462 | -10/Mines | Entered Exiles 463 | -10/Exiles | Identified exit to Mines 487 | -10/Exiles | Met 8R-AWN 502 | -10/Exiles | Met EX-HEX 527 | -10/Exiles | Met EX-BIN 538 | -10/Exiles | Aligned with FarCom system 539 | -10/Exiles | Given EX-Vault access code 561 | -10/Exiles | Opened EX-Vault 569 | -10/Exiles | Found Prototype Ballistic Gun 571 | -10/Exiles | Identified AWS/Gauss 575 | -10/Exiles | Found Prototype Device 576 | -10/Exiles | Identified Chronowheel 576 | -10/Exiles | Activated Chronowheel 580 | -10/Exiles | Found Prototype Device 581 | -10/Exiles | Identified Skeleton Box 611 | -10/Exiles | Warned to stay clear of 0b10 Research branches 636 | -10/Exiles | Met EX-DEC 678 | -10/Exiles | Left Exiles lab with AWS/Gauss 678 | -10/Exiles | Entered Mines 679 | -9/Mines | Assembled infested the area 684 | -9/Mines | Assisted by a Guerilla fighting off Assembled 704 | -9/Mines | Met a Derelict bent on vengeance 741 | -9/Mines | Destroyed 8 combat bots 749 | -9/Mines | Learned 4 Materials zone layouts 807 | -9/Mines | Discovered new exit (range 7) 814 | -9/Mines | Entered Materials 814 | -8/Materials | Evolved 4 slots: Propulsion x1, Utility x3 815 | -8/Materials | Identified exit to Factory 817 | -8/Materials | Loaded intel: 12 terminal locations 1187 | -8/Materials | Destroyed 17 combat bots 1210 | -8/Materials | Lost 4 parts (1p2u1w) 1214 | -8/Materials | First assault squad dispatched 1384 | -8/Materials | Core integrity fell below 50% 1429 | -8/Materials | Lost 4 parts (2u2w) 1485 | -8/Materials | Core integrity fell below 20% 1501 | -8/Materials | Destroyed by Y-45 Defender with Beam Rifle Last Messages --------------- 01374_ Lgt. Armor Plating severed. 01374_ Lgt. Treads severed. 01378_ Hrd. Light Armor Plating destroyed. 01378_ Acquired Lgt. Treads. 01380_ Acquired Lgt. Armor Plating. 01383_ Acquired Lgt. Treads. 01392_ K-01 Serf cleans the Neutrino Reactor. 01398_ Lgt. Armor Plating destroyed. 01400_ K-01 Serf cleans the Neutrino Reactor. 01447_ Lgt. Treads destroyed. 01465_ Dropped Com. Battery. 01466_ Extracted 4 energy. 01467_ Extracted 15 energy. 01468_ Extracted 20 energy. 01468_ Dropped Imp. Heat Sink. 01469_ Extracted 19 energy. 01469_ Dropped Lrg. Storage Unit. 01469_ Dropped Imp. Cooling System. 01470_ Extracted 16 energy. 01489_ Particle Charger destroyed. Map ----- +----------------------------------------------------+ | ?????T???????????????????# + " # % #???? | | ?????????????????????????# ## " = [* #???? | | ?????????????????????????# ## %%*= #???? | | ?????????????????????????###+#### !*# #???? | | ?????????????????????????? ?# "" # ###???? | | ?????????????????????????#""" # S"" # #?????? | | ??????? #???????#""" ! # "" # #??#+#? | | ???????#######+#####?????#""" ########## #??# #? | | ???????#??# #?????#""" #????????# #??# #? | | ???????#??# """"" #?????# #??????### #### #? | | ???????#??# """"" ###############?????# ## ## | | ???????#??# """"" ## ####### | | ???????#??# """"" ## !+ T ^ | | ???????#??# """"" ## !!####### | | ???????#??# """"" ## !#?????# ## | | ???????#??# """"" ## g #?????###/#### | | ???????#??# ## #?????# + | | ???????############## o #?????# """ #### | | ???????# # #????"# """ #??? | | ???????# """ """ # #????T# """ #??? | | ???????# """ """ # #????"# #??? | | ???????# """ """ # #?????# [#??? | | ???????# # #?????########??? | | ???????############+#######s######## #?????????? | | ??????? Y #?????????? | | ??????? @ #####??????????????? | | ??????? #??????????????????? | | ??????? #??????????????????? | | ??????? #??????????????????? | | ??????? ########??????????????????? | | ??????? #########?????????????????? | | ??????? # ?????????Y???????? | | ??????? # """ "?????????????????? | | ??????? # """ "?????????????????? | | ??????? + """ "?????????????????? | | ??????? # ?????????????????? | | ???????########### #########?????????????????? | | ???????########### #?????????????????????????? | | ??????? # #?????????????????????????? | | T?????? """ # #???#####?????????????????? | | ??????? """ # #???# ?????????????????? | | ??????? """ + #???# ?????????